bitfinex/quotes_SOLUSD_20240726
["timestamp","ask_amount","ask_price","bid_price","bid_amount"]
[1721996845065,13.53,179.25,179.2,13.53]
[1721996845264,10.06058171,179.24,179.2,13.53]
[1721996846007,13.53,179.25,179.2,13.53]
[1721996846379,10.06064724,179.24,179.2,13.53]
[1721996846696,13.53,179.25,179.2,13.53]
[1721996846871,10.06065745,179.24,179.2,13.53]
[1721996847070,13.53,179.25,179.2,13.53]
[1721996847268,10.06065638,179.24,179.2,13.53]
[1721996847463,13.53,179.25,179.2,13.53]
[1721996847684,10.06048781,179.24,179.2,13.53]
[1721996848773,13.53,179.25,179.2,13.53]
[1721996851081,16.09705021,179.29,179.21,13.53]
[1721996851392,10.06016394,179.28,179.23,13.53]
[1721996851704,10.06016394,179.27,179.24,13.53]
[1721996852022,23.59016394,179.29,179.23,13.53]
[1721996852206,10.05918096,179.28,179.23,13.53]
[1721996852506,13.53,179.29,179.23,13.53]
[1721996852704,10.05910927,179.28,179.23,13.53]
[1721996853006,10.05910927,179.28,179.19,21.6215]
[1721996853007,10.05913771,179.27,179.19,21.6215]
[1721996853173,10.05913771,179.27,179.22,13.53]
[1721996853581,19.1079,179.28,179.22,13.53]
[1721996853804,10.05953163,179.27,179.22,13.53]
[1721996854304,19.1079,179.28,179.22,13.53]
[1721996854616,10.05952408,179.27,179.22,13.53]
[1721996856011,19.1079,179.28,179.22,13.53]
[1721996856327,23.58941558,179.27,179.22,13.53]
[1721996856494,13.53,179.27,179.22,13.53]
[1721996857782,19.1088,179.25,179.19,21.6215]
[1721996858017,13.53,179.24,179.19,21.6215]
[1721996858318,23.59080589,179.24,179.19,21.6215]
[1721996858634,13.53,179.24,179.19,21.6215]
[1721996858989,13.53,179.22,179.19,21.6215]
[1721996859615,13.53,179.23,179.19,21.6215]
[1721996862015,13.53,179.24,179.19,35.1515]
[1721996862212,10.06163089,179.23,179.19,35.1515]
[1721996862796,13.53,179.24,179.19,35.1515]
[1721996863013,10.06162124,179.23,179.19,35.1515]
[1721996863216,13.53,179.24,179.19,35.1515]
[1721996863422,10.06154678,179.23,179.19,35.1515]
[1721996864011,23.59154678,179.23,179.19,21.6215]
[1721996864189,13.53,179.23,179.19,21.6215]
[1721996864385,13.53,179.21,179.15,35.392]
[1721996864817,13.53,179.2,179.15,21.862]
[1721996865216,13.53,179.2,179.15,35.392]
[1721996865794,13.53,179.21,179.16,13.53]
[1721996866123,13.53,179.22,179.16,13.53]
[1721996867819,13.53,179.23,179.18,13.53]
[1721996869119,13.53,179.23,179.17,13.53]
[1721996869329,5.5788,179.25,179.17,13.53]
[1721996869492,13.53,179.23,179.17,13.53]
[1721996869923,13.53,179.23,179.18,13.53]
[1721996870302,10.06192711,179.22,179.18,13.53]
[1721996870506,13.53,179.23,179.15,21.862]
[1721996870507,13.53,179.23,179.17,13.53]
[1721996871121,13.53,179.24,179.18,13.53]
[1721996871326,10.06185371,179.23,179.18,13.53]
[1721996872904,13.53,179.24,179.18,13.53]
[1721996873223,10.06182062,179.23,179.18,13.53]
[1721996873531,19.1091,179.24,179.18,13.53]
[1721996873706,10.06177953,179.23,179.18,13.53]
[1721996873909,19.1091,179.24,179.18,13.53]
[1721996874214,10.06177846,179.23,179.18,13.53]
[1721996876404,10.06185435,179.22,179.18,13.53]
[1721996876607,10.06185435,179.23,179.18,13.53]
[1721996877211,13.53,179.24,179.18,13.53]
[1721996877420,10.06185435,179.23,179.18,13.53]
[1721996879444,10.06185435,179.22,179.18,13.53]
[1721996879726,26.16018042,179.25,179.18,13.53]
[1721996879923,15.64115435,179.24,179.18,13.53]
[1721996880129,9.72035813,179.26,179.17,13.53]
[1721996880327,10.0598418,179.25,179.17,13.53]
[1721996880505,10.0598418,179.25,179.18,13.53]
[1721996880506,23.5898418,179.25,179.18,13.53]
[1721996880707,13.53,179.25,179.18,13.53]
[1721996880903,13.53,179.25,179.19,13.53]
[1721996881228,13.53,179.26,179.19,13.53]
[1721996881612,13.53,179.26,179.2,13.53]
[1721996882021,13.53,179.26,179.15,21.862]
[1721996882230,13.53,179.26,179.16,45.0]
[1721996882433,20.0802881,179.27,179.2,13.53]
[1721996882608,10.05934171,179.26,179.21,13.53]
[1721996882804,13.53,179.28,179.22,13.53]
[1721996883134,10.05892379,179.27,179.22,13.53]
[1721996883721,13.53,179.28,179.22,13.53]
[1721996883924,10.05878931,179.27,179.22,13.53]
[1721996885351,19.1079,179.28,179.22,13.53]
[1721996885520,10.05878121,179.27,179.22,13.53]
[1721996885923,13.53,179.28,179.23,13.53]
[1721996886130,10.05879141,179.27,179.23,13.53]
[1721996887023,10.05879141,179.27,179.22,13.53]
[1721996887516,19.1079,179.28,179.22,13.53]
[1721996889849,19.1079,179.28,179.23,13.53]
[1721996890433,5.5779,179.28,179.23,13.53]
[1721996890631,19.1079,179.28,179.23,13.53]
[1721996890832,5.5779,179.28,179.23,13.53]
[1721996891035,15.63652555,179.28,179.23,13.53]
[1721996891340,5.5779,179.28,179.23,13.53]
[1721996892631,19.1076,179.29,179.23,13.53]
[1721996892830,5.5776,179.29,179.24,13.53]
[1721996893227,15.63616539,179.29,179.24,13.53]
[1721996893620,5.5776,179.29,179.24,13.53]
[1721996893815,15.63612326,179.29,179.24,13.53]
[1721996894247,10.05852326,179.29,179.24,13.53]
[1721996894443,15.63612326,179.29,179.24,13.53]
[1721996895252,15.63612326,179.29,179.25,13.53]
[1721996895253,10.05852326,179.29,179.25,13.53]
[1721996895436,15.63572326,179.3,179.25,13.53]
[1721996896048,10.05840477,179.29,179.25,13.53]
[1721996896249,5.5772,179.3,179.25,13.53]
[1721996896445,15.63560584,179.3,179.25,13.53]
[1721996899422,5.5772,179.3,179.25,13.53]
[1721996899743,15.63530939,179.3,179.25,13.53]
[1721996900327,5.5772,179.3,179.25,13.53]
[1721996900527,10.05810939,179.3,179.26,13.53]
[1721996900844,5.5769,179.31,179.26,13.53]
[1721996901050,15.63496517,179.31,179.26,13.53]
[1721996902744,5.5769,179.31,179.26,13.53]
[1721996902950,15.63472175,179.31,179.26,13.53]
[1721996903342,5.5769,179.31,179.26,13.53]
[1721996903650,15.63466594,179.31,179.26,13.53]
[1721996904358,5.5769,179.31,179.26,13.53]
[1721996904572,19.1066,179.32,179.26,13.53]
[1721996906755,5.5764,179.33,179.27,13.53]
[1721996907051,5.5764,179.33,179.28,13.53]
[1721996907248,15.63303712,179.33,179.28,13.53]
[1721996907453,5.5764,179.33,179.28,13.53]
[1721996908553,19.1064,179.33,179.27,13.53]
[1721996910262,13.53,179.33,179.27,13.53]
[1721996910447,13.53,179.33,179.19,55.2356633]
[1721996910448,19.106,179.34,179.28,13.53]
[1721996911141,19.106,179.34,179.29,13.53]
[1721996911142,5.576,179.34,179.29,13.53]
[1721996911542,19.106,179.34,179.28,13.53]
[1721996911938,13.53,179.33,179.28,13.53]
[1721996912335,19.1064,179.33,179.28,13.53]
[1721996912862,13.53,179.33,179.27,13.53]
[1721996913056,19.1063,179.33,179.27,13.53]
[1721996913376,13.53,179.33,179.27,13.53]
[1721996913869,19.106,179.34,179.28,13.53]
[1721996914575,13.53,179.34,179.28,13.53]
[1721996914969,14.54414219,179.37,179.29,13.53]
[1721996915150,13.53,179.35,179.29,13.53]
[1721996915560,13.53,179.34,179.28,13.53]
[1721996916254,13.53,179.34,179.29,13.53]
[1721996916650,13.53,179.35,179.29,13.53]
[1721996918365,19.1057,179.35,179.29,13.53]
[1721996921344,20.07738158,179.35,179.29,13.53]
[1721996921545,20.07738158,179.35,179.3,13.53]
[1721996922351,14.50168158,179.35,179.3,13.53]
[1721996924352,14.50168158,179.35,179.29,13.53]
[1721996925150,0.97168158,179.35,179.3,13.53]
[1721996925775,19.1054,179.36,179.3,13.53]
[1721996928978,13.53,179.36,179.3,13.53]
[1721996929186,13.53,179.36,179.31,13.53]
[1721996929681,14.54414219,179.37,179.31,13.53]
[1721996929856,5.5747,179.38,179.32,13.53]
[1721996930178,10.05401897,179.39,179.33,13.53]
[1721996930365,29.15851897,179.39,179.33,13.53]
[1721996930567,10.05401897,179.38,179.33,13.53]
[1721996931079,15.62871897,179.38,179.33,13.53]
[1721996931277,5.5751,179.37,179.32,13.53]
[1721996931579,19.1048,179.38,179.32,13.53]
[1721996934166,5.5748,179.38,179.33,13.53]
[1721996935177,19.1045,179.39,179.33,13.53]
[1721996935485,27.84741464,179.4,179.34,13.53]
[1721996935683,10.05338371,179.39,179.34,13.53]
[1721996936064,10.05338371,179.39,179.35,13.53]
[1721996936787,19.1039,179.41,179.35,13.53]
[1721996936994,10.05338039,179.4,179.35,13.53]
[1721996938163,10.76502679,179.4,179.35,13.53]
[1721996938588,24.29502679,179.4,179.28,54.12]
[1721996938764,14.2416464,179.4,179.29,65.0]
[1721996938972,14.2416464,179.4,179.34,13.53]
[1721996939565,0.7116464,179.4,179.35,13.53]
[1721996939966,10.76458563,179.4,179.35,13.53]
[1721996940176,10.76458563,179.4,179.36,13.53]
[1721996940369,0.7116464,179.4,179.36,13.53]
[1721996940570,10.76457339,179.4,179.36,13.53]
[1721996940788,0.7116464,179.4,179.37,13.53]
[1721996942787,0.7116464,179.4,179.39,13.53]
[1721996944662,0.7116464,179.4,179.38,13.53]
[1721996946371,0.7116464,179.4,179.37,13.53]
[1721996946583,0.7116464,179.4,179.29,65.0]
[1721996946780,0.7116464,179.4,179.36,13.53]
[1721996948993,0.7116464,179.4,179.37,13.53]
[1721996949490,0.7116464,179.4,179.36,13.53]
[1721996950688,0.7116464,179.4,179.37,13.53]
[1721996952079,0.7116464,179.4,179.36,13.53]
[1721996953694,0.7116464,179.4,179.37,13.53]
[1721996954799,0.7116464,179.4,179.29,65.0]
[1721996954997,0.7116464,179.4,179.36,13.53]
[1721996955592,14.2416464,179.4,179.29,65.0]
[1721996955787,14.2416464,179.4,179.35,13.53]
[1721996956475,0.7116464,179.4,179.35,13.53]
[1721996956669,0.7116464,179.4,179.29,65.0]
[1721996956870,0.7116464,179.4,179.35,13.53]
[1721996957794,0.7116464,179.4,179.36,13.53]
[1721996962600,0.7116464,179.4,179.37,13.53]
[1721996962804,0.7116464,179.4,179.38,13.53]
[1721996963480,0.7116464,179.4,179.39,13.53]
[1721996964275,0.7116464,179.4,179.38,13.53]
[1721996967205,0.7116464,179.4,179.29,65.0]
[1721996967519,0.7116464,179.4,179.39,13.53]
[1721996969287,0.7116464,179.4,179.39,58.53]
[1721996969901,0.7116464,179.4,179.39,53.06]
[1721996970098,0.7116464,179.4,179.39,8.06]
[1721996970414,0.7116464,179.4,179.29,20.0]
[1721996970591,0.7116464,179.4,179.3,45.0]
[1721996970790,0.7116464,179.4,179.31,20.0]
[1721996971101,0.7116464,179.4,179.32,45.0]
[1721996971301,0.7116464,179.4,179.33,20.0]
[1721996971510,0.7116464,179.4,179.34,45.0]
[1721996971718,0.7116464,179.4,179.35,20.0]
[1721996972013,0.7116464,179.4,179.36,45.0]
[1721996982712,0.7116464,179.4,179.35,20.0]
[1721996982893,0.7116464,179.4,179.34,2.24880337]
[1721996983097,0.7116464,179.4,179.29,20.0]
[1721996984197,0.7116464,179.4,179.3,45.0]
[1721996984419,0.7116464,179.4,179.31,20.0]
[1721996984594,0.7116464,179.4,179.32,45.0]
[1721996984794,0.7116464,179.4,179.33,20.0]
[1721996985091,0.7116464,179.4,179.34,45.0]
[1721996985299,0.7116464,179.4,179.35,20.0]
[1721996985500,0.7116464,179.4,179.36,45.0]
[1721996995607,0.7116464,179.4,179.37,20.0]
[1721996995923,0.7116464,179.4,179.38,45.0]
[1721996996112,0.7116464,179.4,179.39,20.0]
[1721996996431,0.7116464,179.4,179.39,65.0]
[1721996998329,4.64e-05,179.4,179.39,65.0]
[1721996999217,10.04889524,179.51,179.39,65.0]
[1721996999406,10.04889524,179.51,179.4,45.0]
[1721996999734,10.04833443,179.5,179.41,20.0]
[1721997000033,10.04833443,179.49,179.42,45.0]
[1721997000203,31.69335943,179.56,179.43,20.0]
[1721997000408,10.04833443,179.55,179.44,45.0]
[1721997001535,15.61773443,179.55,179.44,45.0]
[1721997002043,16.07415086,179.55,179.33,6.48050018]
[1721997002342,5.5715,179.49,179.31,8.02090637]
[1721997002540,8.03791425,179.54,179.32,5.81396548]
[1721997002731,26.12434316,179.53,179.32,36.78758561]
[1721997002935,26.12434316,179.52,179.33,8.34964823]
[1721997003233,10.04782429,179.51,179.34,12.7444472]
[1721997003433,0.8122136,179.58,179.35,8.34945075]
[1721997003654,9.54760107,179.58,179.36,27.94390622]
[1721997003808,5.5712,179.5,179.36,20.0]
[1721997004013,5.5712,179.5,179.33,20.0]
[1721997004336,5.571,179.5,179.32,5.81396548]
[1721997004509,5.5707,179.51,179.32,5.81396548]
[1721997004711,5.5712,179.5,179.32,5.81396548]
[1721997005244,5.571,179.5,179.32,5.81396548]
[1721997005406,45.0,179.49,179.32,5.81396548]
[1721997005612,30.04762869,179.48,179.32,5.81396548]
[1721997005829,5.5734,179.43,179.32,5.81396548]
[1721997006426,45.0,179.47,179.32,5.81396548]
[1721997006427,5.5735,179.42,179.32,5.81396548]
[1721997006633,5.5732,179.44,179.32,5.81396548]
[1721997006826,10.04941994,179.44,179.32,5.81396548]
[1721997007030,5.5722,179.46,179.32,5.81396548]
[1721997007237,5.5722,179.46,179.33,65.0]
[1721997007238,10.04987983,179.46,179.33,65.0]
[1721997007423,5.5719,179.47,179.33,65.0]
[1721997008055,5.5719,179.47,179.33,45.0]
[1721997008256,13.44,179.44,179.38,13.44]
[1721997008549,13.44,179.44,179.33,45.0]
[1721997008550,13.44,179.44,179.39,13.44]
[1721997008755,36.13948232,179.52,179.39,13.44]
[1721997008756,13.44,179.45,179.39,13.44]
[1721997008935,13.44,179.44,179.39,13.44]
[1721997009347,13.44,179.45,179.4,13.44]
[1721997009531,13.44,179.46,179.4,13.44]
[1721997009950,21.65055563,179.51,179.42,13.44]
[1721997010162,26.12882708,179.5,179.48,13.44]
[1721997010465,9.54760107,179.58,179.37,53.76]
[1721997010466,9.54760107,179.58,179.49,13.44]
[1721997010629,10.04608244,179.57,179.46,13.44]
[1721997010832,10.85829604,179.58,179.47,45.0]
[1721997011049,10.85829604,179.58,179.55,13.44]
[1721997011255,10.85829604,179.58,179.47,45.0]
[1721997011256,0.8122136,179.58,179.57,13.44]
[1721997011530,0.8122136,179.58,179.47,45.0]
[1721997011761,0.8122136,179.58,179.48,20.0]
[1721997011928,0.8122136,179.58,179.57,13.44]
[1721997012132,0.8122136,179.58,179.56,13.44]
[1721997012331,0.8122136,179.58,179.5,26.83]
[1721997012554,0.8122136,179.58,179.51,65.0]
[1721997013142,0.8122136,179.58,179.53,26.83]
[1721997013469,34.8699787,179.75,179.56,26.83]
[1721997013634,26.83,179.66,179.54,45.0]
[1721997013839,26.83,179.66,179.47,26.83]
[1721997014040,26.83,179.66,179.48,20.0]
[1721997014041,5.5664,179.65,179.48,20.0]
[1721997014280,26.83,179.66,179.48,20.0]
[1721997014465,8.73005708,179.69,179.53,26.83]
[1721997014642,42.311317,179.76,179.54,20.0]
[1721997014643,5.5643,179.72,179.54,20.0]
[1721997014978,5.5648,179.7,179.54,20.0]
[1721997015140,32.3978,179.61,179.46,26.83]
[1721997015345,32.3978,179.61,179.35,20.0]
[1721997015346,26.83,179.58,179.32,20.0]
[1721997015561,26.83,179.58,179.39,27.9442766]
[1721997015841,26.83,179.6,179.42,26.83]
[1721997016058,45.0,179.59,179.42,26.83]
[1721997016258,45.0,179.59,179.43,1.11426587]
[1721997016485,30.21,179.62,179.44,1.11405869]
[1721997016776,45.0,179.61,179.4,1.11405869]
[1721997017150,50.5676,179.61,179.4,1.11405869]
[1721997017352,45.0,179.61,179.4,21.11405869]
[1721997017555,30.21,179.62,179.4,21.11405869]
[1721997017773,30.21,179.62,179.4,22.88429352]
[1721997017963,45.0,179.61,179.41,45.0]
[1721997018276,50.5677,179.61,179.42,21.11414221]
[1721997018450,45.0,179.61,179.43,46.11413456]
[1721997018772,50.5677,179.61,179.43,46.11413456]
[1721997018976,45.0,179.61,179.43,45.0]
[1721997019151,50.5677,179.61,179.44,20.0]
[1721997019472,30.21,179.62,179.45,46.11411228]
[1721997019673,35.7774,179.62,179.46,20.0]
[1721997019865,50.21,179.66,179.47,45.0]
[1721997020076,45.0,179.65,179.48,21.11393656]
[1721997020379,5.5667,179.64,179.49,45.0]
[1721997020555,30.21,179.66,179.5,20.0]
[1721997020758,30.21,179.66,179.51,45.0]
[1721997021368,5.5664,179.65,179.51,45.0]
[1721997021739,30.21,179.66,179.51,45.0]
[1721997021944,45.0,179.65,179.51,45.0]
[1721997022487,50.5665,179.65,179.51,45.0]
[1721997022779,28.7275064,179.71,179.51,45.0]
[1721997022780,5.5659,179.67,179.52,1.11375481]
[1721997022969,45.0,179.66,179.52,1.11375481]
[1721997023344,8.7275064,179.71,179.52,1.11375481]
[1721997023542,8.7275064,179.71,179.52,21.11375481]
[1721997023543,5.5651,179.7,179.52,21.11375481]
[1721997023775,5.5652,179.69,179.53,45.0]
[1721997023957,14.2922064,179.71,179.54,21.1135818]
[1721997024151,8.7275064,179.71,179.55,46.11341946]
[1721997024351,8.7275064,179.71,179.56,20.0]
[1721997024555,8.7275064,179.71,179.57,46.11325353]
[1721997024785,8.7275064,179.71,179.58,20.0]
[1721997024979,8.7275064,179.71,179.59,45.0]
[1721997026483,5.5631,179.76,179.59,46.11325428]
[1721997026686,5.5639,179.73,179.59,45.0]
[1721997026856,8.72621864,179.74,179.6,20.0]
[1721997027176,14.28981864,179.74,179.61,45.0]
[1721997027381,8.72621864,179.74,179.61,45.0]
[1721997027560,14.28981864,179.74,179.61,45.0]
[1721997028185,8.72621864,179.74,179.61,45.0]
[1721997028372,8.72621864,179.74,179.6,20.0]
[1721997028575,14.29001864,179.74,179.53,21.11325428]
[1721997028785,8.72621864,179.74,179.53,21.11325428]
[1721997028973,45.0,179.73,179.53,21.11325428]
[1721997029170,5.5645,179.71,179.53,21.11325428]
[1721997029672,5.5642,179.72,179.53,21.11325428]
[1721997030075,45.0,179.73,179.53,21.11325428]
[1721997030268,5.5657,179.67,179.49,7.27422241]
[1721997030472,5.5657,179.67,179.5,1.1136068]
[1721997030695,8.72621864,179.74,179.51,1.1136068]
[1721997030877,8.72621864,179.74,179.58,30.21]
[1721997031085,0.8122136,179.77,179.58,30.21]
[1721997031303,8.7259865,179.75,179.58,30.21]
[1721997031481,14.2892865,179.75,179.58,30.21]
[1721997031680,14.2892865,179.75,179.59,20.0]
[1721997031882,14.2892865,179.75,179.6,45.0]
[1721997032208,14.2892865,179.75,179.61,20.0]
[1721997032504,8.7259865,179.75,179.61,20.0]
[1721997032696,8.7259865,179.75,179.62,45.0]
[1721997033203,8.7259865,179.75,179.63,20.0]
[1721997033410,8.7259865,179.75,179.64,45.0]
[1721997033700,0.8122136,179.77,179.64,45.0]
[1721997034803,0.8122136,179.77,179.65,20.0]
[1721997035109,0.8122136,179.77,179.66,45.0]
[1721997035607,0.8122136,179.77,179.67,20.0]
[1721997036109,0.8122136,179.77,179.59,1.11297565]
[1721997036397,6.3750136,179.77,179.59,21.11297565]
[1721997036791,0.8122136,179.77,179.59,21.11297565]
[1721997037102,20.8122136,179.77,179.54,38.21305854]
[1721997037307,5.5639,179.73,179.55,1.11335906]
[1721997037613,45.0,179.76,179.55,1.11335906]
[1721997037614,5.5633,179.75,179.55,1.11335906]
[1721997037801,45.0,179.76,179.58,30.21]
[1721997038278,45.0,179.76,179.59,45.0]
[1721997038478,45.0,179.76,179.6,1.11322138]
[1721997038698,0.8122136,179.77,179.59,46.11311387]
[1721997039009,20.0,179.76,179.54,38.21305854]
[1721997039173,5.5642,179.73,179.55,1.11340892]
[1721997039368,45.0,179.72,179.55,1.11340892]
[1721997039573,0.8122136,179.77,179.55,1.11340892]
[1721997040016,20.0,179.76,179.55,1.11332869]
[1721997040182,45.0,179.75,179.55,1.11332869]
[1721997040376,20.8122136,179.77,179.56,1.11348824]
[1721997040377,0.8122136,179.77,179.56,1.11348824]
[1721997040706,20.0,179.67,179.51,5.8172031]
[1721997040876,33.9153,179.66,179.51,5.8172031]
[1721997041073,20.0,179.6,179.38,1.11417312]
[1721997041293,20.0,179.6,179.37,30.21]
[1721997041294,40.0,179.58,179.37,30.21]
[1721997041505,33.9203,179.6,179.46,5.82520442]
[1721997041809,5.5688,179.58,179.38,1.11452035]
[1721997042020,5.5693,179.56,179.46,5.8213114]
[1721997042178,45.0,179.59,179.38,1.11452035]
[1721997042380,45.0,179.59,179.4,5.81967101]
[1721997042596,5.5693,179.56,179.4,5.81967101]
[1721997042779,45.0,179.55,179.4,5.81967101]
[1721997043105,50.5695,179.55,179.4,5.81967101]
[1721997043483,45.0,179.55,179.4,5.81967101]
[1721997043683,45.0,179.56,179.4,5.81967101]
[1721997044412,45.0,179.57,179.4,5.81967101]
[1721997045102,45.0,179.58,179.4,5.81967101]
[1721997045419,45.0,179.58,179.41,20.0]
[1721997045420,50.5688,179.58,179.41,20.0]
[1721997045709,5.5689,179.57,179.42,45.0]
[1721997045909,20.0,179.55,179.4,5.81967101]
[1721997046613,50.5698,179.54,179.4,5.81967101]
[1721997047106,50.57,179.54,179.4,5.81967101]
[1721997047303,45.0,179.54,179.4,5.81967101]
[1721997047502,45.0,179.54,179.41,45.0]
[1721997047703,5.5682,179.59,179.41,45.0]
[1721997048013,13.9181,179.63,179.41,76.32434469]
[1721997048014,20.0,179.63,179.41,76.32434469]
[1721997048213,5.5685,179.58,179.41,76.32434469]
[1721997048406,5.5689,179.57,179.42,20.0]
[1721997048719,5.5688,179.57,179.43,45.0]
[1721997048896,5.5692,179.56,179.44,20.0]
[1721997049513,5.5692,179.56,179.42,20.0]
[1721997049735,45.0,179.55,179.41,20.0]
[1721997049889,5.5701,179.53,179.4,5.81967101]
[1721997050209,45.0,179.52,179.4,5.81967101]
[1721997050708,45.0,179.52,179.34,30.21]
[1721997050917,5.5711,179.5,179.34,30.21]
[1721997051108,45.0,179.49,179.34,30.21]
[1721997051305,45.0,179.49,179.32,5.81966703]
[1721997051615,5.572,179.47,179.32,5.81966703]
[1721997051799,50.5723,179.46,179.32,5.81966703]
[1721997052195,20.0,179.44,179.32,5.81966703]
[1721997052414,5.5745,179.39,179.32,5.81966703]
[1721997052614,45.0,179.38,179.32,5.81966703]
[1721997052809,65.0,179.43,179.32,5.81966703]
[1721997053120,5.5738,179.41,179.25,1.1154462]
[1721997053289,5.5745,179.39,179.26,5.81665141]
[1721997053488,45.0,179.4,179.26,5.81665141]
[1721997053489,45.0,179.38,179.26,5.81665141]
[1721997053819,5.5749,179.38,179.26,5.81665141]
[1721997054023,20.0,179.38,179.26,5.81665141]
[1721997054192,20.0,179.35,179.26,5.81665141]
[1721997054391,20.0,179.33,179.26,5.81665141]
[1721997054609,5.5772,179.31,179.14,1.11589485]
[1721997054788,45.0,179.3,179.2,5.8167932]
[1721997054990,45.0,179.3,179.13,0.8122136]
[1721997054991,20.0,179.29,179.13,0.8122136]
[1721997055222,45.0,179.28,179.13,0.8122136]
[1721997055394,45.0,179.28,179.16,5.8156681]
[1721997055595,50.5781,179.28,179.13,0.8122136]
[1721997055895,45.0,179.28,179.15,5.81685131]
[1721997056127,5.5785,179.26,179.15,5.81685131]
[1721997056410,45.0,179.25,179.15,5.81685131]
[1721997057207,50.5788,179.25,179.15,5.81685131]
[1721997057411,45.0,179.25,179.15,5.81685131]
[1721997057720,45.0,179.25,179.13,0.8122136]
[1721997057899,5.5794,179.24,179.13,0.8122136]
[1721997058090,5.5795,179.23,179.13,0.8122136]
[1721997058294,5.579,179.25,179.13,0.8122136]
[1721997058491,65.0,179.26,179.13,0.8122136]
[1721997058709,45.0,179.26,179.13,0.8122136]
[1721997058923,50.28,179.26,179.13,0.8122136]
[1721997059108,20.0,179.26,179.13,0.8122136]
[1721997059308,5.5822,179.14,179.13,0.8122136]
[1721997059520,20.0,179.24,179.13,0.8122136]
[1721997059820,0.97241465,179.29,179.13,0.8122136]
[1721997059821,20.0,179.26,179.13,0.8122136]
[1721997060009,5.5797,179.23,179.13,0.8122136]
[1721997060204,5.5811,179.18,179.13,0.8122136]
[1721997060412,5.5806,179.2,179.13,0.8122136]
[1721997060721,20.0,179.24,179.13,0.8122136]
[1721997061250,20.0,179.23,179.13,0.8122136]
[1721997061522,5.5811,179.18,179.13,0.8122136]
[1721997061727,20.0,179.21,179.13,0.8122136]
[1721997061898,5.581,179.18,179.13,0.8122136]
[1721997062253,5.5806,179.19,179.13,0.8122136]
[1721997062531,13.951,179.2,179.13,0.8122136]
[1721997062824,5.5822,179.14,179.13,0.8122136]
[1721997063025,20.0,179.17,179.13,0.8122136]
[1721997063204,20.0,179.15,179.13,0.8122136]
[1721997063395,5.5822,179.14,179.13,0.8122136]
[1721997064204,5.5839,179.09,178.95,31.0922136]
[1721997064499,5.5837,179.09,178.95,31.0922136]
[1721997064698,40.0,179.11,178.95,31.0922136]
[1721997064923,5.5845,179.07,178.95,31.0922136]
[1721997065096,5.584,179.09,178.95,31.0922136]
[1721997065312,5.584,179.08,178.95,31.0922136]
[1721997065507,5.5846,179.07,178.95,0.8122136]
[1721997065717,5.5841,179.08,178.95,0.8122136]
[1721997065907,5.5837,179.1,178.95,0.8122136]
[1721997066111,20.0,179.11,178.95,0.8122136]
[1721997066307,20.0,179.15,178.98,30.28]
[1721997066618,20.0,179.17,178.98,30.28]
[1721997066813,20.0,179.14,178.97,30.28]
[1721997067126,5.5841,179.08,178.95,0.8122136]
[1721997067437,5.5841,179.08,178.96,30.28]
[1721997067804,5.5831,179.11,178.96,30.28]
[1721997068205,5.5838,179.09,178.95,31.1822136]